{"text_format":"1","workbook":"xlsx","n_sheets":3,"sheets":["Fragebogen inklusive Ergebnis","Infobutton","Auswertung"],"not_rendered":{"charts":0,"images":27,"macros":1,"external_links":0,"defined_names":2,"comments":0,"pivot_tables":0},"unopened":[],"bounds":{"document_bytes":16777216,"sheet_cells":100000,"rows_first":2000,"rows_last":500,"rows_between":2000,"halvings":0,"cell_chars":16384,"cell_head_chars":4096},"cells_cut":0,"cells_raw":0,"read":"whole","date_system":"1900"}

{"sheet":"Fragebogen inklusive Ergebnis","index":0,"n_rows":272,"n_cols":61,"rows_kept":272,"cut":false,"hidden":false,"merged":[[196,2,196,39],[194,2,194,39],[197,3,197,40],[259,43,259,69],[263,2,263,39],[241,2,241,39],[243,2,243,39],[254,2,254,39],[257,2,257,39],[262,2,262,39],[252,2,252,39],[258,2,258,39],[259,2,259,39],[260,2,260,39],[247,2,247,39],[248,2,248,39],[256,2,256,39],[240,2,240,29],[240,36,240,39],[244,2,244,39],[245,2,245,39],[239,2,239,29],[239,36,239,39],[212,2,212,9],[198,2,198,39],[186,2,186,39],[187,2,187,39],[195,2,195,39],[191,3,191,40],[210,36,210,39],[270,2,270,9],[220,2,220,39],[221,2,221,39],[223,2,223,39],[225,2,225,39],[226,2,226,39],[228,2,228,39],[230,2,230,39],[231,2,231,39],[233,2,233,17],[233,19,233,39],[235,2,235,17],[235,19,235,39],[237,19,237,39],[246,2,246,39],[250,2,250,39],[251,2,251,39],[253,2,253,39],[255,2,255,39],[199,5,200,35],[199,36,199,39],[201,5,202,35],[205,2,205,39],[207,2,207,39],[211,3,211,39],[201,36,201,39],[203,5,204,35],[203,36,203,39],[8,2,8,39],[188,2,188,39],[12,2,12,39],[104,2,104,39],[114,3,114,39],[28,29,28,39],[76,12,76,13],[26,8,26,23],[42,8,42,23],[141,2,141,39],[81,12,81,13],[76,5,76,10],[81,5,81,10],[85,5,85,10],[85,12,85,13],[139,2,139,39],[89,29,89,39],[91,29,91,39],[108,3,108,38],[138,2,138,39],[184,2,184,29],[184,36,184,39],[183,2,183,29],[183,36,183,39],[4,19,4,22],[4,2,4,5],[6,2,6,5],[4,24,4,28],[4,6,4,16],[6,6,6,16],[189,2,189,39],[155,6,155,13],[143,7,143,34],[151,2,151,39],[153,14,153,36],[168,12,171,39],[173,12,176,39],[149,7,149,34],[164,12,166,39],[155,14,155,36],[157,14,157,36],[153,6,153,13],[180,2,182,39],[16,3,16,39],[46,3,46,39],[32,3,32,39],[145,2,145,39],[147,7,147,34]]}
[]
[]
[null,null,"Personendaten:"]
[]
[null,null,"Name",null,null,null,"Musterfrau",null,null,null,null,null,null,null,null,null,null,null,null,"Geburtsdatum",null,null,null,null,"1977-01-01"]
[]
[null,null,"Vorname",null,null,null,"Andrea"]
[]
[null,null,"Um die Geeignetheit eines Produktes/einer Produktvariante für Sie beurteilen zu können, benötigen wir ein paar Angaben von Ihnen.\nMachen Sie keine oder nur unzureichende Angaben, können wir nicht beurteilen, ob das von Ihnen beabsichtigte Produkt für Sie geeignet ist."]
[]
[null,null,"A. Kenntnisse und Erfahrungen (Angemessenheitsprüfung)"]
[]
[null,null,"Die Angemessenheitsprüfung dient dazu, festzustellen, ob Sie über die notwendigen Kenntnisse und Erfahrungen verfügen, um die mit Versicherungsanlageprodukten verbundenen Risiken und Auswirkungen einschätzen zu können.",null,null,null,null,null,null,null,null,null,null,null,null,null,null,null,null,null,null,null,null,null,null,null,null,null,null,null,null,null,null,null,null,null,null,null,null,null,null,null,null,null,null,null,null,true]
[]
[null,null,"Kenntnisse"]
[]
[null,null,null,"Verfügen Sie über Kenntnisse zu Anlageprodukten? Wenn ja, zu welchen?"]
[]
[null,null,null,null,null,"Kapitalbildende Lebens- und Rentenversicherungen"]
[]
[null,null,null,null,null,"Fondsbasierte Lebens- und Rentenversicherungen"]
[]
[null,null,null,null,null,"Aktien und Aktienfonds"]
[]
[null,null,null,null,null,"Festverzinsliche Wertpapiere/Rentenfonds"]
[]
[null,null,null,null,null,"Sonstiges:"]
[]
[null,null,null,null,null,"Keine Kenntnisse",null,null,null,null,null,null,null,null,null,null,null,null,null,null,null,null,null,null,null,null,null,null,null,{"$f":"IF(AV13=TRUE,\"Ausgabe der Infobroschüre\",\"\")","v":"Ausgabe der Infobroschüre"}]
[]
[null,null,"Erfahrungen"]
[]
[null,null,"1.","Haben Sie bereits Erfahrungen mit Anlageprodukten gemacht? Wenn ja, welche haben Sie bereits abgeschlossen?"]
[]
[null,null,null,null,null,"Kapitalbildende Lebens- und Rentenversicherungen"]
[]
[null,null,null,null,null,"Fondsbasierte Lebens- und Rentenversicherungen"]
[]
[null,null,null,null,null,"Aktien und Aktienfonds"]
[]
[null,null,null,null,null,"Festverzinsliche Wertpapiere/Rentenfonds"]
[]
[null,null,null,null,null,"Sonstiges:",null,null,null,null,null,null,null,null,null,null,null,null,null,null,null,null,null,null,null,null,null,null,null,null,null,null,null,null,null,null,null,null,null,null,null,null,null,null,null,null,null,false]
[]
[null,null,null,null,null,"Keine Erfahrungen"]
[]
[null,null,"2.","Anzahl der Geschäfte in den letzten 5 Jahren"]
[]
[null,null,null,null,null,"Keine"]
[]
[null,null,null,null,null,"bis 5"]
[]
[null,null,null,null,null,"bis 10"]
[]
[null,null,null,null,null,"mehr als 10"]
[]
[null,null,"B. Anlageziel und Anlagehorizont",null,null,null,null,null,null,null,null,null,null,null,null,null,null,null,null,null,null,null,null,null,null,null,null,null,null,null,null,null,null,null,null,null,null,null,null,null,null,null,null,null,null,null,null,null,null,null,null,null,null,null,null,null,null,1,"Falsch","Falsch","Falsch"]
[]
[null,null,"1.","Welches Ziel verfolgen Sie mit der Anlage?",null,null,null,null,null,null,null,null,null,null,null,null,null,null,null,null,null,null,null,null,null,null,null,null,null,null,null,null,null,null,null,null,null,null,null,null,null,null,null,null,null,null,null,null,null,null,null,null,null,null,null,null,null,2,"Falsch","Falsch","Falsch"]
[]
[null,null,null,null,null,"Vermögensaufbau/Sicherung der Altersvorsorge mit laufenden Sparbeiträgen",null,null,null,null,null,null,null,null,null,null,null,null,null,null,null,null,null,null,null,null,null,null,null,null,null,null,null,null,null,null,null,null,null,null,null,null,null,null,null,null,null,null,null,null,null,null,null,null,null,null,null,3,"Wahr","Falsch","Falsch"]
[]
[null,null,null,null,null,"Vermögensaufbau/Sicherung der Altersvorsorge mit Einmalbeitragsanlage",null,null,null,null,null,null,null,null,null,null,null,null,null,null,null,null,null,null,null,null,null,null,null,null,null,null,null,null,null,null,null,null,null,null,null,null,null,null,null,null,null,null,null,null,null,null,null,null,null,null,null,4,"Wahr","Falsch","Falsch"]
[]
[null,null,null,null,null,"Sonstiges - z.B. Sicherung der Altersvorsorge für andere (z.B. Ehepartner, Kinder, Enkelkinder)",null,null,null,null,null,null,null,null,null,null,null,null,null,null,null,null,null,null,null,null,null,null,null,null,null,null,null,null,null,null,null,null,null,null,null,null,null,null,null,null,null,null,null,null,null,null,null,null,null,null,null,5,"Wahr","Falsch","Falsch"]
[]
[null,null,"2.","In wieviel Jahren möchten Sie Ihr Anlageziel erreicht haben?",null,null,null,null,null,null,null,null,null,null,null,null,null,null,null,null,null,null,null,null,null,null,null,null,null,null,null,null,null,null,null,null,null,null,null,null,null,null,null,null,null,null,null,null,null,null,null,null,null,null,null,null,null,6,"Falsch","Falsch","Falsch"]
[]
[null,null,null,null,null,"Kurz- oder mittelfristig (bis 15 Jahre)",null,null,null,null,null,null,null,null,null,null,null,null,"Langfristig (mehr als 15 Jahre)",null,null,null,null,null,null,null,null,null,null,null,null,null,null,null,null,null,null,null,null,null,null,null,null,null,null,null,null,null,null,null,null,null,null,null,null,null,null,7,"Falsch","Falsch","Falsch"]
[]
[null,null,"C. Finanzielle Verhältnisse"]
[]
[null,null,"1.","Welchen Betrag haben Sie monatlich, abzüglich Ihrer Ausgaben, zur Verfügung?"]
[null,null,null,"Monatliche Einkünfte sind zum Beispiel Ihr Nettogehalt, Mieteinnahmen oder sonstige Einkünfte."]
[null,null,null,"Monatliche Ausgaben sind zum Beispiel Kredite, Haushaltskosten, Mietausgaben, Beiträge für Versicherungen oder sonstige finanzielle Verpflichtungen."]
[]
[null,null,null,"ca.",null,null,null,null,null,null,null,null,"Euro",null,"(Pflichtfeld)"]
[]
[null,null,"2.","Wie viel Vermögen steht Ihnen aktuell zur Verfügung?"]
[null,null,null,"Liquide verfügbar, z. B. Guthaben auf Ihrem Konto, Geldmarktfonds, Aktien, Anleihen, Investmentfonds"]
[]
[null,null,null,"ca.",null,null,null,null,null,null,null,null,"Euro",null,"(Pflichtfeld)"]
[]
[null,null,null,"Sonstige Vermögenswerte, z.B. Immobilienbesitz und Anlagen"]
[]
[null,null,null,"ca.",null,null,null,null,null,null,null,null,"Euro",null,"(Pflichtfeld)"]
[]
[null,null,"3.","Aus welchen Quellen erhalten Sie Ihre Einkünfte?"]
[]
[null,null,null,null,null,"Gehalt"]
[]
[null,null,null,null,null,"Rente/Pension"]
[]
[null,null,null,null,null,"Mieteinnahmen"]
[]
[null,null,null,null,null,"Kapitaleinkünfte"]
[]
[null,null,null,null,null,"Sonstige Einkünfte (z.B. Kindergeld)"]
[]
[]
[]
[]
[null,null,"D. Anlegertyp/Risikoprofil"]
[]
[null,null,"Beim Erwerb von Versicherungsanlageprodukten ist wichtig, dass die Risikoklasse des Anlageproduktes zu Ihrem Anlegertyp passt.\nDie nachfolgenden Fragen dienen der Einschätzung Ihres Risikoprofils."]
[]
[null,null,"a. Risikotragfähigkeit"]
[]
[null,null,"1.","Ich besitze neben der zusätzlich geplanten Altersvorsorge ausreichend Reserven, um einen Voll- oder Teilverlust der Anlage bzw. der gezahlten Beiträge zu verkraften."]
[]
[]
[]
[null,null,"b. Risikobereitschaft"]
[]
[null,null,"1.","Die Sicherheit meiner Altersvorsorge ist mir am wichtigsten. Mir ist bewusst, dass diese Präferenz zu sehr geringen Renditen führen kann. "]
[]
[]
[]
[null,null,"2.","Die Sicherheit einer Versicherungsleistung in Höhe der von mir gezahlten Beiträge ist mir wichtig - ggf. auch zu Lasten einer höheren Rendite."]
[]
[]
[]
[null,null,"3.","Für die Möglichkeit einer Rendite über Kapitalmarkt-Zinsniveau gehe ich auch Risiken ein."]
[]
[]
[]
[null,null,"4.","Ich bin offen für Anlagen mit erheblichen Kursschwankungen und hohen Verlustrisiken"]
[]
[]
[]
[null,null,"5.","Fällt eine Wertbenachrichtigung mal geringer aus als im Vorjahr, bleibe ich ruhig, da ich auf langfristigen Wertzuwachs setze."]
[]
[]
[]
[null,null,"6.","Finanzielle Risiken lösen bei mir keinen psychischen Druck aus."]
[]
[]
[]
[null,null,"Auf Basis Ihrer Angaben informieren wir Sie im Folgenden, welcher Anlegertyp Sie grundsätzlich sind und welche Produktvarianten zu diesem passen.\nIhre gewünschte Anlageform/Produktvariante sollte hinsichtlich der Risikoklassifizierung nicht über dem Risikoprofil Ihres Anlegertyps liegen.\nWir informieren Sie daher ebenfalls, welche Anlageformen/Produktvarianten aufgrund Ihrer Angaben grundsätzlich über Ihrem persönlichen Risikoprofil liegen."]
[null,null,"Sollten Sie sich für eine Anlageform/Produktvariante mit höherer Risikoklassifizierung - insbesondere höher als Ihr persönliches Risikoprofil - entscheiden, so weisen wir ausdrücklich auf Folgendes hin:\nSie nehmen auf eigenen Wunsch Wertschwankungen und mögliche Verluste für die Chance auf eine höhere Rendite in Kauf. "]
[]
[null,null,"Ihre gemachten Angaben sprechen für den folgenden Anlegertyp:"]
[]
[null,null,null,null,null,null,null,{"$f":"Auswertung!B2","v":"Sicherheitsorientierter Typ"}]
[]
[null,null,"Zu diesem Anlegertyp passen folgende Anlageformen/Produktvarianten:"]
[]
[null,null,null,null,null,null,null,{"$f":"IF(H144=Auswertung!B63,Auswertung!W63,IF(H144=Auswertung!B59,Auswertung!W61,IF(H144=Auswertung!B57,Auswertung!W57,\"\")))","v":"Klassische Rentenversicherung"}]
[]
[null,null,null,null,null,null,null,{"$f":"IF(H144=Auswertung!B59,Auswertung!W59,\"\")","v":""}]
[]
[null,null,"Folgende Anlageformen/Produktvarianten liegen über Ihrem persönlichen Risikoprofil:"]
[]
[null,null,null,null,null,null,{"$f":"IF(OR($H$144=\"Sicherheitsorientierter Typ\",$H$144=\"Ausgewogener Typ\"),Auswertung!L57,\"\")","v":"Renditeorientierte Anlage"},null,null,null,null,null,null,null,{"$f":"IF(OR($H$144=\"Sicherheitsorientierter Typ\",$H$144=\"Ausgewogener Typ\"),Auswertung!W57,\"\")","v":"Fondsgebundene Rentenversicherung"}]
[]
[null,null,null,null,null,null,{"$f":"IF($H$144=\"Sicherheitsorientierter Typ\",Auswertung!L59,\"\")","v":"Ausgewogene Anlage"},null,null,null,null,null,null,null,{"$f":"IF($H$144=\"Sicherheitsorientierter Typ\",Auswertung!W59,\"\")","v":"Fondsgebundene Rentenversicherung mit Kapitalerhalt"}]
[]
[null,null,null,null,null,null,null,null,null,null,null,null,null,null,{"$f":"IF($H$144=\"Sicherheitsorientierter Typ\",Auswertung!W61,\"\")","v":"Klassische Rentenversicherung mit Überschüssen in Fonds"}]
[]
[]
[]
[]
[null,null,"Nachfolgend finden Sie eine Gegenüberstellung der Anlageformen/Produktvarianten je Anlegerprofil"]
[]
[null,null,"Sicherheitsorientierte Anlage",null,null,null,null,null,null,null,null,null,"Klassische Rentenversicherung mit Fokus auf garantierten Leistungen ohne Fondsbeteiligung und ohne Verlustrisiko"]
[]
[]
[]
[null,null,"Ausgewogene Anlage",null,null,null,null,null,null,null,null,null,"Rentenversicherungen mit einem Teil Garantie und einem Teil Fondsanlage. Damit sollen erhöhte Renditechancen am Kapitalmarkt wahrgenommen werden. Ein erhöhtes Verlustrisiko und Ertragsschwankungen werden dafür in Kauf genommen."]
[]
[]
[]
[]
[null,null,"Renditeorientierte Anlage",null,null,null,null,null,null,null,null,null,"Rein fondsbasierte Rentenversicherung ohne garantierte Leistungen. Die Entwicklung des Vermögens hängt von der Wertentwicklung der gewählten Fonds ab. Den höheren Renditeerwartungen stehen ein deutliches Verlustrisiko und sehr hohe Ertragsschwankungen gegenüber.\n"]
[]
[]
[]
[]
[null,null,"E. Nachhaltigkeitspräferenzen"]
[]
[null,null,"Wesentliche Kriterien für Anleger sind Rendite, Sicherheit und Liquidität.\nEine zunehmend an Bedeutung gewinnende Frage ist, was Ihr angelegtes Geld bewirkt.\nDiese Frage zielt auf die Nachhaltigkeitskriterien bei Anlageprodukten."]
[]
[]
[null,null,"Nachhaltigkeit hat drei Dimensionen - man spricht kurz von ESG:",null,null,null,null,null,null,null,null,null,null,null,null,null,null,null,null,null,null,null,null,null,null,null,null,null,null,null,null,null,null,null,null,null,"Infoblatt"]
[null,null,"ESG steht für Environmental Social Governance - zu Deutsch: Umwelt, Soziales und Unternehmensführung"]
[]
[null,null,"Die Berücksichtigung von Nachhaltigkeit kann Auswirkungen auf die Rendite und Sicherheit einer Anlage haben. "]
[null,null,"In Ihrem Interesse müssen unsere Empfehlungen sowohl Ihre finanziellen Ziele, als auch Ihre Nachhaltigkeitspräferenzen widerspiegeln.\nIhre Anlageziele und persönlichen Umstände sollten dabei Vorrang vor Ihren Nachhaltigkeitspräferenzen haben."]
[]
[null,null,"Um Ihre Nachhaltigkeitspräferenz einschätzen zu können, benötigen wir ein paar Angaben von Ihnen."]
[]
[null,null,"1.","Bei meiner Geldanlage sollen nachhaltige Produkte berücksichtigt werden."]
[]
[]
[]
[null,null,"Sofern nachhaltige Produkte bei Ihrer Geldanlage brücksichtigt werden sollen, beantworten Sie bitte auch die folgende Frage und beachten Sie den Hinweis zum Mindestanteil unter 3."]
[]
[null,null,"2.","Welche konkreten Nachhaltigkeitsziele wollen Sie mit Ihrer Geldanlage verfolgen?"]
[]
[null,null,null,null,"a)","Ich lege meinen Fokus auf eine hohe Nachhaltigkeitswirkung.\nIch möchte daher in Finanzprodukte anlegen, die in ökologisch nachhaltige Wirtschaftstätigkeit investieren und einen wesentlichen Beitrag zur Verwirklichung eines oder mehrerer Umweltziele leisten.",null,null,null,null,null,null,null,null,null,null,null,null,null,null,null,null,null,null,null,null,null,null,null,null,null,null,null,null,null,null,"Info 2a"]
[]
[null,null,null,null,"b)","Ich sehe mein Geld auch als positiven Gestaltungsfaktor.\nIch möchte daher in Finanzprodukte anlegen, die durch nachhaltige Investition zur Erreichung von Umweltzielen oder sozialen Zielen beitragen und diese fördern.",null,null,null,null,null,null,null,null,null,null,null,null,null,null,null,null,null,null,null,null,null,null,null,null,null,null,null,null,null,null,"Info 2b"]
[]
[null,null,null,null,"c)","Ich möchte anerkannte Werte und Standards berücksichtigt wissen.\nIch möchte daher Investitionen vermeiden, die negative Auswirkungen auf Nachhaltigkeitsfaktoren haben.",null,null,null,null,null,null,null,null,null,null,null,null,null,null,null,null,null,null,null,null,null,null,null,null,null,null,null,null,null,null,"Info 2c"]
[]
[null,null,"Ihre persönlich gewünschte Nachhaltigkeitspräferenz analog vorstehender gradweise abgestufter Antwortmöglichkeiten unter 2. können Sie durch die Auswahl entsprechend klassifizierter Fonds oder Produkte umsetzen."]
[]
[null,null,"Unsere Kapitalanlagen sind gemäß EU Offenlegungsverordnung (auch SFDR genannt) klassifiziert:\n- Kapitalanlagen nach Art. 9 und Art. 8 SFDR gelten als nachhaltig im Sinne der Berücksichtigung von ESG-Aspekten.\n- Kapitalanlagen nach Art. 9 sind dabei nachhaltiger, als Kapitalanlagen nach Art. 8.\n- Kapitalanlagen nach Art. 6 SFDR berücksichtigen Nachhaltigkeitsrisiken, aber kaum ESG-Aspekte."]
[]
[]
[null,null,"3.","Hinweis zum gewünschten Mindestanteil Ihrer Geldanlage in nachhaltigen / ökologisch nachhaltigen Investitionen",null,null,null,null,null,null,null,null,null,null,null,null,null,null,null,null,null,null,null,null,null,null,null,null,null,null,null,null,null,null,null,null,"Info"]
[null,null,null,"Der von Ihnen gewünschte Mindestanteil nachhaltiger Investitionen kann durch die Auswahl entsprechender Fonds oder Produkte beeinflusst werden.\nJe größer der gewünschte Mindestanteil sein soll, umso größer muss der Anteil der nach Art. 9 oder Art. 8 SFDR klassifizierten Kapitalanlagen im entsprechenden Versicherungsanlageprodukt sein."]
[]
[]
[]
[]
[]
[]
[null,null,"F. Ergebnis der Geeignetheitsprüfung"]
[]
[null,null,"Bitte beachten Sie, dass wir gesetzlich verpflichtet sind, Ihnen ein Versicherungsanlageprodukt nur dann zu empfehlen, wenn wir aufgrund der von Ihnen gemachten Angaben beurteilen können, ob ein bestimmtes Versicherungsanlageprodukt für Sie geeignet ist und wir Ihnen ein solches Produkt anbieten können.\nSie haben aber auch ohne eine Empfehlung durch uns die Möglichkeit, ein Versicherungsanlageprodukt von uns zu erwerben."]
[null,null,"Für den Fall, dass Sie ein bestimmtes Versicherungsanlageprodukt ohne Empfehlung erwerben möchten, erteilen wir Ihnen in diesem Protokoll Warnhinweise. Dies ist immer dann der Fall, wenn die Produktvarianten der Versicherungsanlageprodukte aufgrund der von Ihnen gemachten Angaben zu Ihren Kenntnissen und Erfahrungen nicht angemessen sind oder sein könnten.\nNicht angemessen bedeutet, dass Sie ggf. nicht über die notwendigen Kenntnisse und Erfahrungen verfügen, um die mit diesen Produkten verbundenen Risiken und Auswirkungen einschätzen zu können."]
[]
[null,null,{"$f":"IF(H144=Auswertung!B45,Auswertung!B47,\"\")","v":""}]
[]
[null,null,{"$f":"IF(OR($AV$13=TRUE,$AV$43=TRUE),Auswertung!L68,\"\")","v":"Wir weisen Sie darauf hin, dass aufgrund Ihrer Angaben zu Kenntnissen und/oder Erfahrungen"}]
[null,null,{"$f":"IF(OR($AV$13=TRUE,$AV$43=TRUE),Auswertung!L69,\"\")","v":"die Produktvarianten der Versicherungsanlageprodukte für Sie nicht angemessen sind."}]
[]
[null,null,{"$f":"IF(OR(C224>\"\",C226>\"\"),Auswertung!B82,\"\")","v":0}]
[]
[null,null,{"$f":"IF(C229=\"\",Auswertung!L73,\"\")","v":""}]
[null,null,{"$f":"IF(C229=\"\",Auswertung!L74,\"\")","v":""}]
[]
[null,null,{"$f":"IF(C229=\"\",Auswertung!B52,\"\")","v":""},null,null,null,null,null,null,null,null,null,null,null,null,null,null,null,null,{"$f":"IF(C229=\"\",H144,\"\")","v":""}]
[]
[null,null,{"$f":"IF(C229=\"\",Auswertung!B54,\"\")","v":""},null,null,null,null,null,null,null,null,null,null,null,null,null,null,null,null,{"$f":"IF(C229=\"\",H148,\"\")","v":""}]
[]
[null,null,null,null,null,null,null,null,null,null,null,null,null,null,null,null,null,null,null,{"$f":"IF(C197=\"\",H150,\"\")","v":""}]
[]
[null,null,"Aufgrund Ihrer Angaben haben Sie folgende Nachhaltigkeitspräferenzen:"]
[]
[null,null,{"$f":"IF(D194=\"x\",Auswertung!N84,IF(L194=\"x\",Auswertung!N86,\"\"))","v":""}]
[]
[null,null,{"$f":"IF(D194=\"x\",Auswertung!K91,\"\")","v":""}]
[]
[null,null,{"$f":"IF(D200=\"x\",Auswertung!N96,\"\")","v":""}]
[null,null,{"$f":"IF(D200=\"x\",Auswertung!N97,\"\")","v":""}]
[null,null,{"$f":"IF(D200=\"x\",Auswertung!N98,\"\")","v":""}]
[null,null,{"$f":"IF(D200=\"x\",Auswertung!N99,\"\")","v":""}]
[]
[null,null,{"$f":"IF(D202=\"x\",Auswertung!N100,\"\")","v":""}]
[null,null,{"$f":"IF(D202=\"x\",Auswertung!N101,\"\")","v":""}]
[null,null,{"$f":"IF(D202=\"x\",Auswertung!N102,\"\")","v":""}]
[]
[null,null,{"$f":"IF(D204=\"x\",Auswertung!N104,\"\")","v":""}]
[null,null,{"$f":"IF(D204=\"x\",Auswertung!N105,\"\")","v":""}]
[]
[null,null,{"$f":"IF(AND(D194=\"x\",T234=\"Ausgewogener Typ\"),Auswertung!K114,IF(AND(D194=\"x\",T234=\"Sicherheitsorientierter Typ\"),Auswertung!K110,\"\"))","v":""}]
[null,null,{"$f":"IF(AND(D194=\"x\",(OR(T234=\"Ausgewogener Typ\",T234=\"Sicherheitsorientierter TyP\"))),Auswertung!K118,\"\")","v":""}]
[null,null,{"$f":"IF(AND(D194=\"x\",(OR(T234=\"Ausgewogener Typ\",T234=\"Sicherheitsorientierter Typ\"))),Auswertung!K119,\"\")","v":""}]
[null,null,{"$f":"IF(AND(D194=\"x\",(OR(T234=\"Ausgewogener Typ\",T234=\"Renditeorientierter Typ\"))),Auswertung!K123,\"\")","v":""}]
[]
[null,null,{"$f":"IF(OR(T234=\"Renditeorientierter Typ\",T234=\"Ausgewogener Typ\"),Auswertung!K127,\"\")","v":""}]
[null,null,{"$f":"IF(OR(T234=\"Renditeorientierter Typ\",T234=\"Ausgewogener Typ\"),Auswertung!K128,\"\")","v":""}]
[]
[]
[]
[]
[]
[]
[]
[null,null,"Ort, Datum",null,null,null,null,null,null,null,null,"Unterschrift des Kunden / Vertretungsberechtigten",null,null,null,null,null,null,null,null,null,null,null,null,null,null,"Unterschrift des Vermittlers"]

{"sheet":"Infobutton","index":1,"n_rows":19,"n_cols":4,"rows_kept":19,"cut":false,"hidden":true,"merged":[]}
[]
[null,"Antwort 2a",null,"Infobutton ökologisch nachhaltige Wirtschaftstätigkeit"]
[]
[null,null,null,"Als ökologisch nachhaltig gilt eine Wirtschaftstätigkeit in dem hier verstandenen Sinn, wenn sie einen wesentlichen Beitrag zur Verwirklichung eines oder mehrerer der folgenden Umweltziele leistet:\n- Klimaschutz,\n- Anpassung an den Klimawandel,\n- nachhaltige Nutzung und Schutz von Wasser- und Meeresressourcen,\n- Übergang zu einer Kreislaufwirtschaft,\n- Vermeidung und Verminderung der Umweltverschmutzung,\n- Schutz und Wiederherstellung der Biodiversität und der Ökosysteme\nund dabei kein Umweltziel erheblich beeinträchtigt.\nZudem muss diese Wirtschaftstätigkeit einen Mindestschutz bzgl. sozialer Ziele (z.B. Ausschluss von Kinderarbeit) und bzgl. einer guten Unternehmensführung (z.B. keine Anreize für Korruption) gewährleisten."]
[]
[]
[null,"Antwort 2b",null,"Infobutton nachhaltige Investition"]
[]
[null,null,null,"Als nachhaltig gilt eine Investition in eine wirtschaftliche Tätigkeit, die zur Erreichung eines Umweltziels oder eines sozialen Zieles beiträgt.\nDie Erreichung eines Umweltziels wird beispielsweise gemessen an Schlüsselindikatoren für Ressourceneffizienz bei der Nutzung von Energie, erneuerbarer Energie, Rohstoffen, Wasser und Boden, für die Abfallerzeugung und Treibhausgasemissionen oder für die Auswirkungen auf die biologische Vielfalt und die Kreislaufwirtschaft.\nZur Erreichung eines sozialen Ziels zählen insbesondere Investitionen zur Bekämpfung von Ungleichheiten, zur Förderung des sozialen Zusammenhalts, der sozialen Integration und der Arbeitsbeziehungen oder Investition in Arbeitskräfte oder zugunsten wirtschaftlich oder sozial benachteiligter Bevölkerungsgruppen.\nDie Unternehmen, in die investiert wird, wenden dabei die Verfahrensweisen einer guten Unternehmensführung an."]
[]
[]
[null,"Antwort 2c",null,"Infobutton Werte und Standards / Nachhaltigkeitsfaktoren"]
[]
[null,null,null,"Nicht im Einklang mit anerkannten Werten und Standards stehen z.B.\n- ausbeuterische Kinderarbeit,\n- Menschenrechtsverletzungen,\n- Kontroverse Waffen,\n- Drogen,\n- Pornografie,\n- Korruption,\n- Umweltzerstörung.\nAls Nachhaltigkeitsfaktoren gelten Umwelt-, Sozial- und Arbeitnehmerbelange, die Achtung der Menschenrechte und die Bekämpfung von Korruption und Bestechung.\nDarüber hinaus können Begrenzungen von weiteren negativen Auswirkungen auf Nachhaltigkeitsbelange in qualitativer oder quantitativer Hinsicht angestrebt werden, wie z.B. die Reduktion des CO2-Fußabdrucks, von Treibhausgas-Emissionen oder andere Umweltverschmutzungen im Allgemeinen."]
[]
[]
[null,"Punkt 3",null,"Infobutton Nachhaltigkeitspräferenz und Mindestanteil an nachhaltigen Investitionen"]
[]
[null,null,null,"Der Anteil nachhaltiger bzw. ökologisch nachhaltiger Investitionen der einzelnen Kapitalanlagen ist gemäß regulatorischer Vorgaben erst zu einem späteren Zeitpunkt auszuweisen. Er wurde daher von den Fondsgesellschaften noch nicht zur Verfügung gestellt. Somit ist das Bestimmen eines konkreten prozentualen Mindestanteils derzeit noch nicht möglich.\n\nUm ein Gefühl für den Grad der Nachhaltigkeit zu bekommen, orientieren Sie sich bitte an der Klassifizierung des jeweiligen Fonds oder Produktes nach Art. 6, 8 oder 9 der EU Offenlegungsverordnung (SFDR).\n\nDer Anteil des Vermögens, den die so klassifizierten Fonds oder Produkte in nachhaltige bzw. ökologisch nachhaltige Wirtschaftstätigkeiten investieren, wird dabei mindestens in dem Umfang gewährleistet, den es braucht, um eine entsprechende Klassifizierung rechtfertigen zu können.\n\nBei Hybrid- und reinen Fondsprodukten kann die persönlich gewünschte Nachhaltigkeitspräferenz durch die Auswahl entsprechender Fonds unterstützt bzw. umgesetzt werden.\n\nDie versicherungstechnischen Rückstellungen der Advigon sind zu einem überwiegenden Anteil in nachhaltigen Investitionen angelegt und in Summe nach Art. 8 SFDR investiert.\n\n"]

{"sheet":"Auswertung","index":2,"n_rows":128,"n_cols":49,"rows_kept":128,"cut":false,"hidden":true,"merged":[[122,10,122,49],[126,10,126,47],[127,10,127,47],[81,2,127,2],[83,13,83,46],[85,13,85,46],[90,10,90,46],[95,13,95,47],[96,13,96,47],[97,13,97,47],[99,13,99,47],[100,13,100,47],[101,13,101,47],[103,13,103,47],[104,13,104,47],[105,13,105,47],[113,10,113,49],[117,10,117,49],[118,10,118,49],[72,11,72,50],[73,11,73,50],[48,1,48,19],[48,21,48,48],[62,1,62,9],[67,11,67,46],[68,11,68,46],[62,22,62,40],[62,11,62,19],[60,22,60,40],[58,22,58,40],[56,22,56,40],[58,11,58,19],[44,1,44,19],[42,1,42,19],[40,1,40,19],[38,1,38,19],[38,21,38,48],[40,21,40,48],[42,21,42,48],[44,21,44,48],[35,5,35,8],[35,13,35,18],[35,23,35,26],[35,31,35,39],[27,5,27,8],[27,13,27,18],[27,23,27,26],[27,31,27,39],[31,5,31,8],[31,13,31,18],[31,23,31,26],[31,31,31,39],[19,23,19,26],[19,31,19,39],[23,5,23,8],[23,13,23,18],[23,23,23,26],[23,31,23,39],[46,1,46,29],[56,11,56,19],[1,1,1,40],[58,1,58,9],[56,1,56,9],[15,5,15,8],[15,13,15,18],[15,23,15,26],[15,31,15,39],[9,5,9,8],[9,13,9,18],[9,23,9,26],[9,31,9,39],[13,3,13,39],[19,5,19,8],[19,13,19,18]]}
[]
[null,{"$f":"IF(OR(AQ4>3,AQ16=1,AQ20=1),B39,IF(AND(AS4>3,AQ16=0,AQ20=0),B41,IF(AND(AU4>3,AQ16=0,AQ20=0),B43,B45)))","v":"Sicherheitsorientierter Typ"},null,null,null,null,null,null,null,null,null,null,null,null,null,null,null,null,null,null,null,null,null,null,null,null,null,null,null,null,null,null,null,null,null,null,null,null,null,null,null,null,"Sicherheit",null,"Ausgewogen",null,"Rendite"]
[]
[null,null,null,null,null,null,null,null,null,null,null,null,null,null,null,null,null,null,null,null,null,null,null,null,null,null,null,null,null,null,null,null,null,null,null,null,null,null,null,null,null,null,{"$f":"SUM(AQ10+AQ16+AQ20+AQ24+AQ28+AQ32+AQ36)","v":1},null,{"$f":"SUM(AS10+AS16+AS20+AS24+AS28+AS32+AS36)","v":0},null,{"$f":"SUM(AU10+AU16+AU20+AU24+AU28+AU32+AU36)","v":2}]
[]
[null,null,"Risikotragfähigkeit"]
[]
[null,null,"1.","Ich besitze neben der zusätzlich geplanten Altersvorsorge ausreichend Reserven"]
[]
[null,null,null,{"$f":"'Fragebogen inklusive Ergebnis'!D111","v":0},null,"Trifft zu",null,null,null,null,null,{"$f":"'Fragebogen inklusive Ergebnis'!L111","v":0},null,"Trifft teilweise zu",null,null,null,null,null,null,null,{"$f":"'Fragebogen inklusive Ergebnis'!V111","v":0},null,"Trifft nicht zu",null,null,null,null,null,null,null,null,null,null,null,null,null,null,null,null,null,null,{"$f":"IF('Fragebogen inklusive Ergebnis'!BI57=\"Wahr\",1,0)","v":0},null,{"$f":"IF('Fragebogen inklusive Ergebnis'!BH57=\"Wahr\",1,0)","v":0},null,{"$f":"IF('Fragebogen inklusive Ergebnis'!BG57=\"Wahr\",1,0)","v":0},null,{"$f":"'Fragebogen inklusive Ergebnis'!#REF!","v":{"$error":"#REF!"}}]
[]
[null,null,"Risikobereitschaft"]
[]
[null,null,"1.","Die Sicherheit meiner Altersvorsorge ist mir am wichtigsten. Mir ist bewusst, dass diese Präferenz zu sehr geringen Renditen führen kann. "]
[]
[null,null,null,{"$f":"'Fragebogen inklusive Ergebnis'!D117","v":0},null,"Trifft zu",null,null,null,null,null,{"$f":"'Fragebogen inklusive Ergebnis'!L117","v":0},null,"Trifft teilweise zu",null,null,null,null,null,null,null,{"$f":"'Fragebogen inklusive Ergebnis'!V117","v":0},null,"Trifft nicht zu",null,null,null,null,null,null,null,null,null,null,null,null,null,null,null,null,null,null,{"$f":"IF('Fragebogen inklusive Ergebnis'!BG59=\"Wahr\",1,0)","v":0},null,{"$f":"IF('Fragebogen inklusive Ergebnis'!BH59=\"Wahr\",1,0)","v":0},null,{"$f":"IF('Fragebogen inklusive Ergebnis'!BI59=\"Wahr\",1,0)","v":0}]
[]
[null,null,"2.","Die Sicherheit einer Versicherngsleistung in Höhe der von mir gezahlten Beiträge ist mir wichtig - ggf. auch zu Lasten einer höheren Rendite."]
[]
[null,null,null,{"$f":"'Fragebogen inklusive Ergebnis'!D121","v":0},null,"Trifft zu",null,null,null,null,null,{"$f":"'Fragebogen inklusive Ergebnis'!L121","v":0},null,"Trifft teilweise zu",null,null,null,null,null,null,null,{"$f":"'Fragebogen inklusive Ergebnis'!V121","v":0},null,"Trifft nicht zu",null,null,null,null,null,null,null,null,null,null,null,null,null,null,null,null,null,null,{"$f":"IF('Fragebogen inklusive Ergebnis'!BG61=\"Wahr\",1,0)","v":1},null,{"$f":"IF('Fragebogen inklusive Ergebnis'!BH61=\"Wahr\",1,0)","v":0},null,{"$f":"IF('Fragebogen inklusive Ergebnis'!BI61=\"Wahr\",1,0)","v":0}]
[]
[null,null,"3.","Für die Möglichkeit einer Rendite über Kapitalmarkt-Zinsniveau gehe ich auch Risiken ein."]
[]
[null,null,null,{"$f":"'Fragebogen inklusive Ergebnis'!D125","v":0},null,"Trifft zu",null,null,null,null,null,{"$f":"'Fragebogen inklusive Ergebnis'!L125","v":0},null,"Trifft teilweise zu",null,null,null,null,null,null,null,{"$f":"'Fragebogen inklusive Ergebnis'!V125","v":0},null,"Trifft nicht zu",null,null,null,null,null,null,null,null,null,null,null,null,null,null,null,null,null,null,{"$f":"IF('Fragebogen inklusive Ergebnis'!BI63=\"Wahr\",1,0)","v":0},null,{"$f":"IF('Fragebogen inklusive Ergebnis'!BH63=\"Wahr\",1,0)","v":0},null,{"$f":"IF('Fragebogen inklusive Ergebnis'!BG63=\"Wahr\",1,0)","v":1}]
[]
[null,null,"4.","Ich bin offen für Anlagen mit erheblichen Kursschwankungen und hohen Verlustrisiken"]
[]
[null,null,null,{"$f":"'Fragebogen inklusive Ergebnis'!D129","v":0},null,"Trifft zu",null,null,null,null,null,{"$f":"'Fragebogen inklusive Ergebnis'!L129","v":0},null,"Trifft teilweise zu",null,null,null,null,null,null,null,{"$f":"'Fragebogen inklusive Ergebnis'!V129","v":0},null,"Trifft nicht zu",null,null,null,null,null,null,null,null,null,null,null,null,null,null,null,null,null,null,{"$f":"IF('Fragebogen inklusive Ergebnis'!BI65=\"Wahr\",1,0)","v":0},null,{"$f":"IF('Fragebogen inklusive Ergebnis'!BH65=\"Wahr\",1,0)","v":0},null,{"$f":"IF('Fragebogen inklusive Ergebnis'!BG65=\"Wahr\",1,0)","v":1}]
[]
[null,null,"5.","Fällt eine Wertbenachrichtigung mal geringer aus als im Vorjahr, bleibe ich ruhig, da ich auf langfristigen Wertzuwachs setze."]
[]
[null,null,null,{"$f":"'Fragebogen inklusive Ergebnis'!D133","v":0},null,"Trifft zu",null,null,null,null,null,{"$f":"'Fragebogen inklusive Ergebnis'!L133","v":0},null,"Trifft teilweise zu",null,null,null,null,null,null,null,{"$f":"'Fragebogen inklusive Ergebnis'!V133","v":0},null,"Trifft nicht zu",null,null,null,null,null,null,null,null,null,null,null,null,null,null,null,null,null,null,{"$f":"IF('Fragebogen inklusive Ergebnis'!BI67=\"Wahr\",1,0)","v":0},null,{"$f":"IF('Fragebogen inklusive Ergebnis'!BH67=\"Wahr\",1,0)","v":0},null,{"$f":"IF('Fragebogen inklusive Ergebnis'!BG67=\"Wahr\",1,0)","v":0}]
[]
[null,null,"6.","Finanzielle Risiken lösen bei mir keinen psychischen Druck aus."]
[]
[null,null,null,{"$f":"'Fragebogen inklusive Ergebnis'!D137","v":0},null,"Trifft zu",null,null,null,null,null,{"$f":"'Fragebogen inklusive Ergebnis'!L137","v":0},null,"Trifft teilweise zu",null,null,null,null,null,null,null,{"$f":"'Fragebogen inklusive Ergebnis'!V137","v":0},null,"Trifft nicht zu",null,null,null,null,null,null,null,null,null,null,null,null,null,null,null,null,null,null,{"$f":"IF('Fragebogen inklusive Ergebnis'!BI69=\"Wahr\",1,0)","v":0},null,{"$f":"IF('Fragebogen inklusive Ergebnis'!BH69=\"Wahr\",1,0)","v":0},null,{"$f":"IF('Fragebogen inklusive Ergebnis'!BG69=\"Wahr\",1,0)","v":0}]
[]
[]
[null,"Sicherheitsorientierter Typ",null,null,null,null,null,null,null,null,null,null,null,null,null,null,null,null,null,null,"=","Wenn mindestens 4x Sicherheit oder pauschal Risikobereitschaft Frage 1 und/oder Frage 2 mit \"Trifft zu\""]
[]
[null,"Ausgewogener Typ",null,null,null,null,null,null,null,null,null,null,null,null,null,null,null,null,null,null,"=","Wenn mindestens 4x Ausgewogen (Teilweise)"]
[]
[null,"Renditeorientierter Typ",null,null,null,null,null,null,null,null,null,null,null,null,null,null,null,null,null,null,"=","Wenn mindestens 4x Rendite"]
[]
[null,"Aufgrund Ihrer Angaben sind Sie keinem Anlegertyp klar zuzuordnen.",null,null,null,null,null,null,null,null,null,null,null,null,null,null,null,null,null,null,"=","Wenn keines der vorgenannten drei Ergebnisse gegeben"]
[]
[null,"Aufgrund Ihrer Angaben ist es uns nicht möglich, zu beurteilen, ob eine bestimmte Produktvariante für Sie geeignet ist.",null,null,null,null,null,null,null,null,null,null,null,null,null,null,null,null,null,null,null,null,null,null,null,null,null,null,null,null,"=","Wenn kein klarer Anlegertyp"]
[]
[null,"Wir dürfen Ihnen daher keine bestimmte Produktvariante empfehlen.",null,null,null,null,null,null,null,null,null,null,null,null,null,null,null,null,null,null,"=","Wenn kein klarer Anlagertyp und/oder nicht angemessen"]
[]
[]
[null,"Aufgrund Ihrer Angaben sind Sie folgender Anlegertyp:",null,null,null,null,null,null,null,null,null,null,null,null,null,null,null,null,null,null,"=","Wenn geeignet und angemessen"]
[]
[null,"Die nachfolgenden Produkte passen zu Ihrem Risikoprofil:",null,null,null,null,null,null,null,null,null,null,null,null,null,null,null,null,null,null,"=","Wenn geeignet und angemessen"]
[]
[]
[null,"Renditeorientierter Typ",null,null,null,null,null,null,null,null,null,"Renditeorientierte Anlage",null,null,null,null,null,null,null,null,null,null,"Fondsgebundene Rentenversicherung"]
[]
[null,"Ausgewogener Typ",null,null,null,null,null,null,null,null,null,"Ausgewogene Anlage",null,null,null,null,null,null,null,null,null,null,"Fondsgebundene Rentenversicherung mit Kapitalerhalt"]
[]
[null,null,null,null,null,null,null,null,null,null,null,null,null,null,null,null,null,null,null,null,null,null,"Klassische Rentenversicherung mit Überschüssen in Fonds"]
[]
[null,"Sicherheitsorientierter Typ",null,null,null,null,null,null,null,null,null,"Sicherheitsorientierte Anlage",null,null,null,null,null,null,null,null,null,null,"Klassische Rentenversicherung"]
[]
[]
[null,"Erfahrungen und Kenntnisse",null,null,null,null,null,null,null,null,"a)","Wenn keine Kenntnisse und/oder keine Erfahrungen angekreuzt:"]
[]
[null,null,null,null,null,null,null,null,null,null,null,"Wir weisen Sie darauf hin, dass aufgrund Ihrer Angaben zu Kenntnissen und/oder Erfahrungen"]
[null,null,null,null,null,null,null,null,null,null,null,"die Produktvarianten der Versicherungsanlageprodukte für Sie nicht angemessen sind."]
[]
[null,null,null,null,null,null,null,null,null,null,"b)","Wenn Kenntnisse und Erfahrungen vorhanden"]
[]
[null,null,null,null,null,null,null,null,null,null,null,"Aufgrund Ihrer Angaben verfügen Sie über ausreichend Kenntnisse und Erfahrungen,"]
[null,null,null,null,null,null,null,null,null,null,null,"um die mit Versicherungsanlageprodukten verbundenen Risiken einzuschätzen."]
[]
[null,null,null,null,null,null,null,null,null,null,"c)","Wenn keine Kenntnisse angekreuzt:"]
[]
[null,null,null,null,null,null,null,null,null,null,null,"Hinweis auf Ausgabe der Infobroschüre"]
[]
[]
[]
[null,null,"Nachhaltigkeitspräferenz",null,null,null,null,null,null,null,"Frage 1"]
[]
[null,null,null,null,null,null,null,null,null,null,"Kreuz 1:",null,null,"Nachhaltige Produkte sollen bei Ihrer Geldanlage berücksichtigt werden."]
[]
[null,null,null,null,null,null,null,null,null,null,"Kreuz 2:",null,null,"Nachhaltige Produkte müssen nicht zwingend bei Ihrer Geldanlage berücksichtigt werden."]
[]
[]
[null,null,null,null,null,null,null,null,null,null,"Wenn Kreuz 1 angekreuzt:"]
[]
[null,null,null,null,null,null,null,null,null,null,"Folgende Nachhaltigkeitsziele wollen Sie dabei mit Ihrer Geldanlage verfolgen:"]
[]
[]
[null,null,null,null,null,null,null,null,null,null,"Frage 2"]
[]
[null,null,null,null,null,null,null,null,null,null,"Kreuz 1:",null,null,"Sie legen Ihren Fokus auf eine hohe Nachhaltigkeitswirkung."]
[null,null,null,null,null,null,null,null,null,null,null,null,null,"Sie möchten daher in Finanzprodukte anlegen, die in ökologisch nachhaltige Wirtschaftstätigkeit investieren"]
[null,null,null,null,null,null,null,null,null,null,null,null,null,"und einen wesentlichen Beitrag zur Verwirklichung eines oder mehrerer Umweltziele leisten."]
[null,null,null,null,null,null,null,null,null,null,null,null,null,"Aufgrund der von Ihnen gewählten Nachhaltigkeitzielen, ist es nicht möglich Ihnen eine passende Produktempfehlung zu unterbreiten."]
[null,null,null,null,null,null,null,null,null,null,"Kreuz 2:",null,null,"Sie sehen Ihr Geld auch als positiven Gestaltungsfaktor."]
[null,null,null,null,null,null,null,null,null,null,null,null,null,"Sie möchten daher in Finanzprodukte anlegen, die durch nachhaltige Investitionen zur Erreichung von Umweltzielen oder sozialen Zielen"]
[null,null,null,null,null,null,null,null,null,null,null,null,null,"beitragen und diese fördern."]
[]
[null,null,null,null,null,null,null,null,null,null,"Kreuz 3:",null,null,"Sie möchten anerkannte Werte und Standards berücksichtigt wissen."]
[null,null,null,null,null,null,null,null,null,null,null,null,null,"Sie möchten daher Investitionen vermeiden, die negative Auswirkungen auf Nachhaltigkeitsfaktoren haben."]
[]
[]
[null,null,null,null,null,null,null,null,null,null,"Sicherheitsorientierter Kunde und Frage 1 Kreuz 1:"]
[]
[null,null,null,null,null,null,null,null,null,null,"Sicherheitsorientierte Anlagen garantieren Ihnen die Leistungen."]
[]
[null,null,null,null,null,null,null,null,null,null,"Ausgewoger Kunde und Frage 1 Kreuz 1:"]
[]
[null,null,null,null,null,null,null,null,null,null,"Ausgewogene Anlagen umfassen neben einem Teil renditenorientierte Anlagen auch immer einen Teil Garantie."]
[]
[null,null,null,null,null,null,null,null,null,null,"Ausgewoger oder sicherheitsorientierter Kunde und Frage 1 Kreuz 1:"]
[]
[null,null,null,null,null,null,null,null,null,null,"Die Garantie wird über eine Anlage in den versicherungstechnischen Rückstellungen der Advigon gewährleistet."]
[null,null,null,null,null,null,null,null,null,null,"Das Sicherungsvermögen ist zu einem überwiegenden Anteil in nachhaltigen Investitionen angelegt und in Summe nach Art.8 SFDR investiert."]
[]
[null,null,null,null,null,null,null,null,null,null,"Ausgewoger oder renditeorientierter Kunde und Frage 1 Kreuz 1:"]
[]
[null,null,null,null,null,null,null,null,null,null,"Ihre Nachhaltigkeitspräferenz können Sie durch die Auswahl entsprechender Fonds oder Produkte umsetzen."]
[]
[null,null,null,null,null,null,null,null,null,null,"Ausgewoger oder renditeorientierter Kunde:"]
[]
[null,null,null,null,null,null,null,null,null,null,"Wir führen keine Fondsberatung durch und dürfen somit keine Empfehlung für einen speziellen Fonds aussprechen."]
[null,null,null,null,null,null,null,null,null,null,"Eine Fondsauswahl treffen Sie daher selbst. "]